bitfinex-derivatives/quotes_ETHF0:USTF0_20251006
["timestamp","ask_amount","ask_price","bid_price","bid_amount"]
[1759761753464,0.96677,4652.8,4651.0,3.5535]
[1759761753662,3.2078,4651.5,4651.3,0.38683]
[1759761754265,0.219,4651.6,4651.5,0.38681]
[1759761754460,0.22083985,4651.6,4651.5,0.00243823]
[1759761754665,3.2078,4652.2,4652.1,0.8236]
[1759761755065,0.219,4652.5,4652.1,0.8236]
[1759761755270,3.2078,4653.0,4652.0,0.3457]
[1759761755271,3.2078,4653.0,4652.9,1.2103]
[1759761755565,3.4268,4653.0,4652.9,1.2103]
[1759761755765,3.20996149,4653.0,4652.9,1.2103]
[1759761755967,3.20996149,4653.0,4652.9,6.2103]
[1759761756168,3.20996149,4653.0,4652.9,1.2103]
[1759761756367,0.00216149,4653.0,4652.9,1.2103]
[1759761756571,3.2078,4653.5,4653.4,1.19305]
[1759761757167,3.2078,4653.5,4652.3,0.8064]
[1759761757168,0.8054,4653.4,4652.3,0.8064]
[1759761757464,3.2078,4653.5,4652.6,3.2078]
[1759761757766,0.219,4653.4,4652.9,0.8064]
[1759761757973,0.219,4653.4,4653.3,0.8064]
[1759761758567,3.20997135,4653.5,4653.4,1.19305]
[1759761758764,0.22117135,4653.5,4653.4,1.19305]
[1759761760269,1.02657135,4653.5,4653.4,1.19305]
[1759761760479,0.22117135,4653.5,4653.4,1.19305]
[1759761761473,0.00217135,4653.5,4653.4,1.19305]
[1759761762371,3.2078,4654.6,4653.7,0.96657]
[1759761762572,0.46991548,4654.5,4654.4,1.19297]
[1759761762766,3.2078,4654.6,4654.5,0.8064]
[1759761763271,3.2078,4654.6,4654.5,1.1293]
[1759761763477,0.00239712,4654.6,4654.5,1.1293]
[1759761763674,3.2078,4655.8,4654.5,1.1293]
[1759761763675,0.219,4655.2,4654.5,6.2893]
[1759761763870,1.0244,4655.6,4655.1,0.38651]
[1759761764070,1.27520868,4655.5,4655.2,0.3865]
[1759761764265,0.219,4655.6,4655.4,0.38649]
[1759761764470,3.2078,4655.8,4655.7,0.8064]
[1759761764871,3.21030586,4655.8,4655.7,0.80911585]
[1759761765070,4.01570586,4655.8,4655.7,0.00271585]
[1759761765579,4.01570586,4655.8,4655.7,1.19557585]
[1759761765766,3.21030586,4655.8,4655.7,1.19557585]
[1759761766573,4.01570586,4655.8,4655.7,0.80911585]
[1759761766769,3.21030586,4655.8,4655.7,1.19557585]
[1759761767372,0.00250586,4655.8,4655.7,6.19557585]
[1759761767674,0.00250586,4655.8,4655.7,9.40337585]
[1759761768074,3.2078,4656.7,4656.5,0.3511]
[1759761768282,3.2078,4656.7,4656.6,1.20589]
[1759761768775,3.2078,4657.4,4656.7,0.8195]
[1759761768982,3.21003151,4657.4,4657.3,0.8195]
[1759761770170,0.00223151,4657.4,4657.3,0.8195]
[1759761772078,0.00223151,4657.4,4657.3,5.8195]
[1759761772283,0.799,4658.4,4657.8,1.20579]
[1759761772978,0.092,4658.5,4657.8,1.20579]
[1759761773279,0.0242666,4657.9,4657.8,1.42479]
[1759761773873,0.0242666,4657.9,4657.8,6.42479]
[1759761774078,3.2078,4658.9,4658.8,0.8195]
[1759761774281,3.2078,4658.9,4658.8,1.0385]
[1759761774683,3.2078,4658.9,4658.2,4.2463]
[1759761774985,3.20960015,4658.9,4658.2,4.2463]
[1759761775175,0.00180015,4658.9,4658.7,0.8195]
[1759761775479,0.799,4658.8,4658.7,0.38621]
[1759761775785,0.00180015,4658.9,4658.8,0.8195]
[1759761775981,0.80080015,4658.9,4658.8,0.8195]
[1759761777283,4.00860015,4658.9,4658.4,0.8195]
[1759761777579,0.799,4658.8,4658.7,0.38621]
[1759761778085,0.799,4658.8,4658.7,1.20571]
[1759761778274,0.799,4658.8,4658.7,0.8195]
[1759761778684,3.20960015,4658.9,4658.5,0.8195]
[1759761779185,0.799,4658.8,4658.7,1.20571]
[1759761779383,3.20960015,4658.9,4658.7,1.20571]
[1759761779384,3.20960015,4658.9,4658.7,0.38621]
[1759761779583,3.20960015,4658.9,4658.8,0.8195]
[1759761780681,0.799,4658.8,4658.6,0.38622]
[1759761781386,3.20960015,4658.9,4658.8,0.38621]
[1759761781586,3.20960015,4658.9,4658.8,1.20571]
[1759761781788,0.00180015,4658.9,4658.5,0.219]
[1759761781989,0.799,4658.8,4658.6,0.38622]
[1759761782178,0.799,4658.8,4658.6,1.20572]
[1759761782377,0.00180015,4658.9,4658.8,1.20571]
[1759761783182,3.2078,4659.5,4659.4,0.38616]
[1759761783386,3.2078,4659.5,4659.4,1.20566]
[1759761784195,0.799,4659.4,4659.2,0.218]
[1759761784387,0.799,4659.4,4659.3,0.38616]
[1759761784587,0.799,4659.4,4659.3,1.20566]
[1759761784786,3.20971082,4659.5,4659.4,0.8195]
[1759761785380,0.00191082,4659.5,4659.4,5.8195]
[1759761785585,3.2078,4660.0,4659.4,5.8195]
[1759761785586,3.2078,4660.0,4659.9,0.38611]
[1759761785781,3.2078,4660.0,4659.9,40.8]
[1759761785982,4.3421,4660.0,4659.9,40.8]
[1759761786579,3.54551633,4660.0,4659.7,0.38613]
[1759761786781,3.76351633,4660.0,4659.2,0.82181371]
[1759761786981,0.799,4659.9,4659.2,0.22031371]
[1759761787189,0.799,4659.9,4659.4,0.38615]
[1759761787887,0.799,4659.9,4659.3,40.8]
[1759761788191,0.799,4659.9,4659.7,0.38613]
[1759761788391,3.76351633,4660.0,4659.4,0.38615]
[1759761788588,4.56251633,4660.0,4659.5,0.8195]
[1759761788787,3.76351633,4660.0,4659.5,0.8195]
[1759761788988,0.799,4659.9,4659.5,0.38615]
[1759761789184,0.799,4659.9,4659.6,1.20564]
[1759761789388,3.21021633,4660.0,4659.9,0.8195]
[1759761790295,0.00241633,4660.0,4659.9,0.8195]
[1759761791195,0.00241633,4660.0,4659.9,41.6195]
[1759761794796,0.80141633,4660.0,4659.9,41.6195]
[1759761794991,0.00241633,4660.0,4659.9,41.6195]
[1759761795390,0.00241633,4660.0,4659.9,41.8375]
[1759761795587,0.80141633,4660.0,4659.9,41.8375]
[1759761795787,0.80141633,4660.0,4659.9,41.6195]
[1759761795987,0.799,4659.9,4659.4,0.38615]
[1759761796191,0.799,4659.9,4659.6,0.38614]
[1759761796392,0.33771633,4660.0,4659.1,0.8195]
[1759761796696,0.799,4659.8,4659.5,0.38615]
[1759761796894,0.799,4659.6,4659.5,0.38615]
[1759761797089,0.46781227,4659.6,4659.3,41.40416]
[1759761797391,0.799,4659.4,4659.3,1.0375]
[1759761797593,1.26681227,4659.4,4659.3,0.8195]
[1759761798291,1.26681227,4659.4,4659.2,0.00231371]
[1759761798292,0.8197,4659.3,4659.2,0.00231371]
[1759761798595,1.28751227,4659.3,4659.2,0.00231371]
[1759761798990,0.8197,4658.9,4658.3,3.2078]
[1759761799201,0.3139,4659.0,4658.5,0.8455]
[1759761799202,0.8197,4658.7,4658.5,0.8455]
[1759761799392,3.67561227,4658.6,4658.2,0.218]
[1759761799591,0.8197,4658.4,4658.3,0.8455]
[1759761799788,0.46781227,4658.4,4658.1,0.218]
[1759761799994,0.8197,4658.3,4658.1,0.0023728]
[1759761800198,0.8197,4658.4,4658.1,0.0023728]
[1759761800499,1.28905603,4658.3,4658.2,40.8]
[1759761800687,1.28905603,4658.3,4658.1,0.0023728]
[1759761800688,0.46935603,4658.3,4658.1,0.0023728]
[1759761800887,1.28905603,4658.2,4658.1,0.0023728]
[1759761801095,0.46935603,4658.2,4658.1,0.8478728]
[1759761801293,0.46935603,4658.2,4658.1,1.2341328]
[1759761801487,3.2078,4658.6,4658.1,1.2341328]
[1759761801488,3.2078,4658.6,4658.5,0.8455]
[1759761801692,3.67726325,4658.6,4658.5,1.1927]
[1759761802097,4.49696325,4658.6,4658.5,0.8455]
[1759761802494,3.67726325,4658.6,4658.5,1.0635]
[1759761802800,0.46946325,4658.6,4658.5,1.4107]
[1759761802996,0.46946325,4658.6,4658.5,1.1927]
[1759761803300,0.46946325,4658.6,4658.5,1.4107]
[1759761803695,0.46946325,4658.6,4658.5,1.1927]
[1759761803891,0.46946325,4658.6,4658.4,40.8]
[1759761804096,0.8197,4658.4,4658.1,0.3886328]
[1759761804398,0.46946325,4658.3,4658.2,0.8455]
[1759761804598,1.28916325,4658.3,4658.2,0.8455]
[1759761804794,1.28916325,4658.3,4658.2,0.38626]
[1759761804993,1.28916325,4658.3,4658.2,1.23176]
[1759761805199,0.46946325,4658.3,4658.2,1.23176]
[1759761805399,0.218,4658.9,4658.4,0.38624]
[1759761805599,1.28949274,4658.8,4658.5,0.38623]
[1759761805799,0.8197,4658.6,4658.5,0.38623]
[1759761806000,1.28949274,4658.6,4658.5,0.8455]
[1759761806192,0.8197,4658.5,4658.3,1.23174]
[1759761806396,1.28949274,4658.4,4658.3,1.23175]
[1759761807903,0.46979274,4658.4,4658.3,1.23175]
[1759761808301,0.46979274,4658.4,4658.3,0.8455]
[1759761809700,0.46979274,4658.4,4658.3,41.6455]
[1759761811005,0.46979274,4658.4,4658.3,41.8635]
[1759761811300,0.46979274,4658.4,4658.1,0.0023728]
[1759761811301,6.50749274,4658.4,4658.1,0.0023728]
[1759761811506,0.46979274,4658.3,4658.1,0.0023728]
[1759761811808,1.28949274,4658.2,4658.1,0.0023728]
[1759761813001,1.28949274,4658.2,4658.1,0.8478728]
[1759761813407,0.46979274,4658.2,4658.1,0.8478728]
[1759761814208,1.28949274,4658.2,4658.1,0.0023728]
[1759761814809,6.28949274,4658.2,4658.1,0.0023728]
[1759761815806,0.3173,4658.0,4657.4,0.38632]
[1759761816011,0.8028,4657.7,4657.4,0.38632]
[1759761816406,3.2078,4657.8,4657.4,0.38632]
[1759761816603,0.46527335,4657.7,4657.4,0.38632]
[1759761816803,0.8028,4657.7,4657.4,0.38842521]
[1759761817313,1.18911,4657.5,4657.4,0.38842521]
[1759761817510,1.72441,4657.5,4657.4,0.00210521]
[1759761817706,2.81161,4657.5,4657.4,0.00210521]
[1759761818308,1.0872,4656.4,4656.3,1.9068]
[1759761818515,0.5383,4656.4,4656.3,1.9068]
[1759761819110,0.5383,4656.4,4656.2,0.38642]
[1759761819111,0.8028,4656.3,4656.2,0.38642]
[1759761819312,0.0020636,4656.3,4656.2,1.45843348]
[1759761819511,0.5403636,4656.3,4656.2,42.25843348]
[1759761819715,1.3431636,4656.3,4656.2,42.25843348]
[1759761820011,1.3431636,4656.3,4656.2,41.72703348]
[1759761820811,1.3431636,4656.3,4656.2,42.56363348]
[1759761821916,0.0020636,4656.3,4656.2,42.56363348]
[1759761825819,0.8048636,4656.3,4656.2,42.56363348]
[1759761826409,0.8048636,4656.3,4656.2,0.83841348]
[1759761826410,1.8920636,4656.3,4656.2,0.83841348]
[1759761826609,1.8920636,4656.3,4656.2,1.37721348]
[1759761826915,1.8920636,4656.3,4656.2,0.54061348]
[1759761827317,1.8920636,4656.3,4656.2,0.00181348]
[1759761827517,0.8028,4655.7,4655.6,0.38647]
[1759761827720,1.89,4655.7,4655.6,0.38647]
[1759761828507,1.89,4655.7,4655.6,2.26232355]
[1759761828508,0.5383,4655.7,4655.6,2.26232355]
[1759761828714,0.0020636,4656.3,4656.2,1.8807]
[1759761829021,0.0020636,4656.3,4656.2,4.01]
[1759761830813,0.3182,4658.0,4656.3,0.8022]
[1759761831115,0.47253604,4657.9,4657.8,1.18849]
[1759761831324,0.47253604,4657.9,4657.8,41.98849]
[1759761831821,0.47488846,4657.9,4657.8,41.98849]
[1759761832025,0.47488846,4657.9,4657.8,42.20649]
[1759761832718,0.00235242,4657.9,4657.8,42.20649]
[1759761833718,0.00235242,4657.9,4657.8,41.98849]
[1759761833921,0.85115242,4657.9,4657.8,41.18629]
[1759761834323,0.85115242,4657.9,4657.8,0.38629]
[1759761834714,0.85115242,4657.9,4657.4,0.38632]
[1759761834715,5.85115242,4657.9,4657.4,0.38632]
[1759761834918,0.00235242,4657.9,4657.5,0.38631]
[1759761835114,0.3863,4657.7,4657.5,0.38631]
[1759761835323,0.8488,4657.6,4657.5,0.38631]
[1759761835727,0.8488,4657.6,4657.5,1.18851]
[1759761836019,1.0668,4657.8,4657.6,0.3863]
[1759761836226,0.218,4657.8,4657.1,0.8022]
[1759761836415,0.38633,4657.4,4657.1,0.8022]
[1759761836740,3.2078,4657.5,4657.0,0.38635]
[1759761836741,0.38634,4657.2,4657.0,0.38635]
[1759761836926,0.8488,4656.9,4656.3,3.2078]
[1759761837635,3.91236,4657.0,4656.3,3.2078]
[1759761837636,3.2078,4657.0,4656.6,0.8022]
[1759761837833,3.2078,4657.0,4656.9,1.18856]
[1759761838335,3.2078,4657.0,4656.5,0.3164]
[1759761838635,3.2078,4657.0,4656.8,0.38637]
[1759761838636,0.8488,4656.9,4656.8,0.38637]
[1759761839136,0.8488,4656.9,4656.8,1.18857]
[1759761839335,3.2078,4657.0,4656.9,0.8022]
[1759761840233,4.0566,4657.0,4656.5,41.1164]
[1759761840432,0.8488,4656.9,4656.0,0.8022]
[1759761840739,0.8488,4656.4,4655.9,0.38644]
[1759761841033,1.0668,4656.3,4656.2,0.8022]
[1759761841333,0.8488,4656.1,4656.0,0.38643]
[1759761841533,0.8488,4656.1,4656.0,1.18863]
[1759761841938,0.8488,4656.1,4656.0,0.38643]
[1759761842130,0.8488,4656.1,4656.0,1.18863]
[1759761842429,0.218,4656.3,4656.2,0.38642]
[1759761842634,1.54038374,4656.3,4656.2,1.18862]
[1759761842834,1.54038374,4656.3,4655.7,40.8]
[1759761842835,0.8488,4656.1,4656.0,0.38644]
[1759761843227,0.8488,4656.1,4656.0,1.18864]
[1759761843429,0.218,4656.3,4656.2,1.18862]
[1759761843831,0.69162743,4656.3,4656.2,1.18862]
[1759761844633,1.54042743,4656.3,4656.2,1.18862]
[1759761844829,0.69162743,4656.3,4656.2,1.18862]
[1759761845837,1.54042743,4656.3,4656.2,1.18862]
[1759761846332,1.54042743,4656.3,4656.1,0.38642]
[1759761846525,1.32242743,4656.2,4656.1,1.18862]
[1759761846731,1.32242743,4656.2,4656.1,0.38643]
[1759761847436,0.8488,4656.2,4656.1,1.18863]
[1759761847636,1.33043809,4656.2,4656.1,1.18863]
[1759761847825,1.04363809,4656.2,4656.1,2.26713]
[1759761848232,2.41053809,4656.2,4656.1,2.26713]
[1759761848933,2.41053809,4656.2,4656.1,0.93213]
[1759761849133,2.41053809,4656.2,4656.1,0.38643]
[1759761849734,1.0801,4655.8,4655.7,41.6022]
[1759761849939,1.23526,4655.7,4655.6,0.00205355]
[1759761850135,1.71688582,4655.7,4655.6,0.00205355]
[1759761851036,1.33042582,4655.7,4655.6,0.00205355]
[1759761852838,2.41052582,4655.7,4655.6,0.00205355]
[1759761853536,1.46664,4654.9,4654.8,0.38653]
[1759761853736,1.9289,4654.7,4654.6,1.73445]
[1759761854237,0.217,4654.9,4654.6,2.26725]
[1759761854437,0.779,4654.9,4654.8,2.26724]
[1759761854637,2.1459,4654.9,4654.8,0.00164369]
[1759761855330,2.1459,4654.9,4654.8,1.34954369]
[1759761855735,2.1459,4654.9,4654.8,1.88234369]
[1759761856136,0.562,4654.9,4654.8,1.88234369]
[1759761856341,3.7698,4655.2,4655.1,1.8807]
[1759761856638,4.8356,4655.2,4655.1,1.8807]
[1759761857144,5.3537,4655.2,4655.1,1.8807]
[1759761857344,5.3537,4655.2,4655.1,2.26721]
[1759761858943,5.3537,4655.2,4655.1,0.38651]
[1759761859140,1.8545,4654.9,4654.8,0.00164369]
[1759761859338,2.0715,4654.9,4654.8,0.00164369]
[1759761863345,2.55217347,4654.9,4654.8,0.00164369]
[1759761863551,2.0715,4654.9,4654.8,1.86134369]
[1759761863758,2.0715,4654.9,4654.8,0.50674369]
[1759761865750,5.0623,4655.2,4655.1,2.24621]
[1759761865947,4.9643934,4655.2,4655.1,2.24621]
[1759761866143,3.9756,4655.2,4655.1,2.24621]
[1759761866343,4.45691454,4655.2,4655.1,2.24621]
[1759761866542,3.9756,4655.2,4655.1,2.24621]
[1759761867149,3.7586,4655.2,4655.1,1.77201568]
[1759761867354,3.7586,4655.2,4655.0,0.3327]
[1759761867355,1.3468,4655.6,4655.5,2.24618]
[1759761867651,2.55290613,4655.6,4655.5,2.24618]
[1759761867847,2.55290613,4655.6,4655.5,1.42958]
[1759761868046,2.0715,4655.6,4655.5,1.42958]
[1759761868752,0.7678,4655.6,4655.5,2.24618]
[1759761868954,1.8545,4655.3,4655.2,0.8916]
[1759761869255,1.8545,4655.3,4655.2,2.2462]
[1759761869445,1.8545,4654.9,4654.8,2.24788369]
[1759761869641,1.8545,4654.9,4654.8,1.43128369]
[1759761869947,2.0715,4654.9,4654.8,1.43128369]
[1759761870347,2.0715,4654.9,4654.8,0.38818369]
[1759761870553,2.0715,4654.9,4654.8,0.00164369]
[1759761872546,2.0715,4654.9,4654.8,0.50674369]
[1759761872857,2.0715,4654.9,4654.8,0.00164369]
[1759761876552,2.0715,4654.9,4654.8,0.54154369]
[1759761876757,2.0715,4654.9,4654.8,0.00164369]
[1759761877352,2.55414866,4654.9,4654.8,0.00164369]
[1759761878051,1.8545,4654.9,4654.8,1.83284369]
[1759761878253,2.0715,4654.9,4654.8,1.83284369]
[1759761878455,1.8545,4654.9,4654.8,1.83284369]
[1759761878650,2.0715,4654.9,4654.8,1.83284369]
[1759761879161,2.1636,4655.5,4655.4,1.8312]
[1759761879459,1.8527,4655.4,4655.3,0.38649]
[1759761879657,2.33568541,4655.4,4655.3,0.38649]
[1759761880065,2.33568541,4655.4,4655.3,0.92639]
[1759761880256,2.33568541,4655.4,4655.3,0.5399]
[1759761880562,2.33568541,4655.4,4655.3,1.8312]
[1759761881459,2.33568541,4655.4,4655.3,41.8678]
[1759761881963,2.33568541,4655.4,4655.3,42.6312]
[1759761882159,2.33568541,4655.4,4655.3,1.8312]
[1759761882362,0.48298541,4655.4,4655.3,1.8312]
[1759761882563,0.48298541,4655.4,4655.3,50.839]
[1759761882762,0.38639,4656.6,4656.4,0.38641]
[1759761882962,2.87088065,4656.5,4656.4,0.38641]
[1759761883166,2.87088065,4656.5,4656.4,0.92631]
[1759761883557,2.87088065,4656.5,4656.4,1.45421]
[1759761883755,2.55268065,4656.5,4656.4,1.45421]
[1759761883960,2.86958065,4656.5,4656.4,0.38641]
[1759761884463,2.1696,4656.0,4655.9,0.5399]
[1759761884662,0.5304,4655.8,4655.7,0.38646]
[1759761884964,1.8527,4655.4,4655.3,44.3943]
[1759761885458,1.8527,4655.4,4655.3,45.1577]
[1759761885663,0.217,4655.6,4655.5,2.21768]
[1759761885961,1.0381,4655.9,4655.8,2.21765]
[1759761886164,2.05123004,4655.9,4655.8,2.21765]
[1759761886552,2.55243004,4655.9,4655.8,1.45425]
[1759761886755,0.91687,4655.6,4655.5,0.5399]
[1759761886961,0.5304,4655.0,4654.9,0.5399]
[1759761887157,1.3515,4655.0,4654.9,2.21773]
[1759761887757,2.0697,4655.4,4655.3,0.9264]
[1759761888056,2.0697,4655.4,4655.3,2.2389]
[1759761888254,0.7474,4655.4,4655.3,2.2389]
[1759761888658,2.0569,4655.4,4655.3,0.9264]
[1759761889057,2.0569,4655.4,4655.3,2.2389]
[1759761890260,1.2981,4655.4,4654.8,41.01864369]
[1759761890462,2.30069933,4655.3,4655.2,0.3865]
[1759761891266,1.8181,4654.9,4654.8,0.00164369]
[1759761891454,2.0351,4654.9,4654.8,0.54364369]
[1759761891658,2.0351,4654.9,4654.8,0.93018369]
[1759761892065,2.0351,4654.9,4654.8,0.38818369]
[1759761892562,2.0351,4654.9,4654.8,0.93018369]
[1759761892865,0.7256,4654.9,4654.8,2.24268369]
[1759761893861,0.217,4654.9,4654.8,2.24268369]
[1759761894768,1.8181,4654.9,4654.8,0.93018369]
[1759761895061,1.8181,4654.9,4654.8,2.24268369]
[1759761895663,0.5086,4654.9,4654.8,2.24268369]
[1759761895966,2.0351,4655.3,4655.2,0.9285]
[1759761896165,2.51807999,4655.3,4655.2,0.9285]
[1759761896365,2.51807999,4655.3,4655.2,0.3865]
[1759761897067,2.90457999,4655.3,4654.8,0.80304369]
[1759761897265,2.1207,4655.0,4654.9,2.24103]
[1759761898363,2.1207,4655.0,4654.9,1.43963]
[1759761898760,2.1207,4655.0,4654.9,2.24103]
[1759761899158,2.3377,4655.0,4654.9,2.24103]
[1759761899757,2.0351,4655.0,4654.9,2.24103]
[1759761899964,3.2078,4655.4,4654.9,1.8545]
[1759761900166,5.0259,4655.9,4655.8,1.43955]
[1759761900469,1.8181,4655.2,4655.1,1.8545]
[1759761900663,1.8181,4655.2,4655.1,2.24101]
[1759761901566,0.217,4655.4,4655.3,1.0531]
[1759761901567,0.7256,4655.4,4655.3,1.0531]
[1759761901769,1.20858388,4655.4,4655.3,2.241]
[1759761902066,1.96738388,4655.4,4655.3,2.241]
[1759761902369,2.51808388,4655.4,4655.3,0.3865]
[1759761903463,2.51808388,4655.4,4655.3,3.5943]
[1759761903663,2.51808388,4655.4,4655.3,4.1363]
[1759761903969,1.2674,4655.8,4655.7,0.38646]
[1759761904168,1.75036639,4655.8,4655.7,2.24096]
[1759761904363,2.51806639,4655.8,4655.7,2.24096]
[1759761904563,2.51806639,4655.8,4655.7,1.43956]
[1759761905664,6.39e-06,4655.8,4655.7,2.24096]
[1759761905865,0.5086,4656.5,4656.4,2.24091]
[1759761906466,0.7588,4656.8,4656.7,2.24088]
[1759761906671,5.11799987,4657.4,4656.7,1.43948]
[1759761906672,0.217,4656.9,4656.7,1.43948]
[1759761906869,0.217,4656.9,4656.8,1.8545]
[1759761907064,1.2674,4657.2,4657.1,1.8545]
[1759761907270,1.8181,4657.2,4657.1,2.24085]
[1759761907473,1.8181,4657.2,4657.1,1.43945]
[1759761908072,0.5086,4657.2,4657.1,2.24085]
[1759761908766,1.2674,4657.2,4657.1,2.24085]
[1759761908970,1.8181,4657.2,4657.1,2.24085]
[1759761909167,0.5507,4657.2,4657.1,1.43945]
[1759761909475,1.8181,4657.2,4657.1,2.24085]
[1759761910068,0.5086,4657.2,4657.1,2.24085]
[1759761910474,3.59644242,4657.9,4657.8,1.43939]
[1759761910475,3.71875242,4657.9,4657.8,1.43939]
[1759761910668,0.00235242,4657.9,4657.8,2.24079]
[1759761911076,0.00235242,4657.9,4657.8,48.04079]
[1759761911273,1.4844,4658.8,4658.7,2.24071]
[1759761912178,0.72779044,4658.8,4658.7,43.04270881]
[1759761912670,1.48659044,4658.8,4658.7,43.04270881]
[1759761913074,1.48659044,4658.8,4658.7,41.85509881]
[1759761913273,1.48659044,4658.8,4658.7,40.80199881]
[1759761914382,7.03729044,4658.8,4657.7,0.8014]
[1759761914569,1.8181,4658.1,4658.0,0.38626]
[1759761914774,2.0351,4658.1,4658.0,0.38626]
[1759761914974,2.0351,4658.1,4658.0,41.18626]
[1759761915369,2.0351,4658.1,4658.0,41.18865549]
[1759761915574,0.217,4658.1,4658.0,42.29665549]
[1759761915978,0.9758,4658.1,4658.0,40.80239549]
[1759761916181,7.0351,4658.1,4658.0,0.00239549]
[1759761916678,1.0593,4657.3,4657.2,0.38634]
[1759761916883,1.8181,4657.3,4657.2,0.38634]
[1759761917177,0.7588,4656.7,4656.6,0.38639]
[1759761917374,0.38639,4656.6,4656.4,0.3864]
[1759761917577,0.7588,4656.5,4656.4,0.3864]
[1759761917881,1.0614,4656.5,4656.4,0.38886935]
[1759761918676,0.7588,4656.5,4656.4,1.17596935]
[1759761920274,0.5288,4656.5,4656.4,2.21886935]
[1759761920583,1.8207,4656.5,4656.4,1.43176935]
[1759761920781,1.8207,4656.5,4656.4,2.21886935]
[1759761920979,0.5288,4656.5,4656.4,2.21886935]
[1759761921171,0.217,4656.6,4656.5,1.83]
[1759761921377,0.217,4656.6,4656.5,2.1363]
[1759761921681,3.2078,4657.4,4657.3,0.38633]
[1759761921883,3.2078,4657.4,4657.3,1.17343]
[1759761922281,3.2078,4657.4,4657.3,41.97343]
[1759761922777,4.0077,4657.4,4657.3,41.97343]
[1759761923083,3.2078,4657.4,4657.3,41.97343]
[1759761923676,1.0953,4658.0,4657.9,0.38628]
[1759761923877,1.3123,4658.0,4657.9,0.38628]
[1759761924585,3.2078,4658.1,4658.0,0.7871]
[1759761924985,4.0077,4658.1,4658.0,0.7871]
[1759761925582,0.38627,4658.0,4657.7,0.38629]
[1759761925780,1.0953,4658.0,4657.9,0.38628]
[1759761926084,3.2078,4658.1,4658.0,0.7871]
[1759761926285,0.217,4658.2,4658.1,1.17336]
[1759761926286,0.7999,4658.2,4658.1,1.17336]
[1759761926487,1.0169,4658.2,4658.1,1.17336]
[1759761926786,0.217,4658.2,4658.1,1.17336]
[1759761926982,4.0077,4658.7,4658.1,1.0041]
[1759761927184,0.21919044,4658.8,4658.3,0.7871]
[1759761927490,0.21919044,4658.8,4658.7,0.7871]
[1759761929385,0.00219044,4658.8,4658.7,0.7871]
[1759761930287,0.217,4659.6,4659.5,0.7871]
[1759761930496,0.217,4659.6,4659.5,1.83]
[1759761930801,3.7366,4660.0,4659.9,1.83]
[1759761930993,1.3287,4660.0,4659.9,1.83]
[1759761931187,0.7999,4660.5,4660.2,0.38609]
[1759761931494,1.0208,4660.4,4660.3,0.88538]
[1759761931800,1.8207,4660.4,4659.9,0.00231765]
[1759761932298,2.1161,4660.0,4659.9,0.00231765]
[1759761933196,7.1161,4660.0,4659.9,0.00231765]
[1759761934195,7.58256449,4660.0,4659.9,0.00231765]
[1759761937396,0.3179,4659.0,4658.5,0.38623]
[1759761937604,0.3179,4659.0,4657.8,0.96573]
[1759761937605,1.7493,4658.3,4658.2,1.40545]
[1759761937802,1.4777,4658.3,4658.2,2.17575]
[1759761937997,0.217,4658.3,4658.2,2.17575]
[1759761938199,1.9663,4658.3,4658.2,1.0192]
[1759761938399,1.9663,4658.3,4658.2,1.02087185]
[1759761938599,1.9663,4658.3,4658.2,1.79117185]
[1759761938600,0.7163,4658.3,4658.2,1.79117185]
[1759761938798,0.4993,4659.0,4658.9,2.1757]
[1759761939004,0.4993,4659.3,4659.2,2.17567]
[1759761939301,0.4993,4658.8,4658.7,1.15651]
[1759761939606,1.7493,4658.8,4658.7,1.0192]
[1759761939906,1.7493,4658.8,4658.7,0.5031]
[1759761941099,1.7493,4658.8,4658.7,1.2734]
[1759761941301,1.7493,4658.8,4658.7,1.7895]
[1759761942309,1.7493,4658.8,4658.7,4.9973]
[1759761942507,1.7493,4658.8,4658.7,1.0192]
[1759761942704,1.2607,4658.4,4658.3,1.65964]
[1759761942905,1.7493,4658.4,4658.3,1.65964]
[1759761943404,1.7493,4658.4,4658.3,0.88934]
[1759761943606,1.7493,4658.4,4658.2,0.00167185]
[1759761943804,1.9663,4658.3,4658.2,0.00167185]
[1759761944203,1.9663,4658.3,4658.2,0.50477185]
[1759761945403,1.9663,4658.3,4658.2,0.00167185]
[1759761946708,1.9663,4658.3,4658.2,0.50477185]
[1759761946908,1.9663,4658.3,4658.2,0.00167185]
[1759761948905,1.9663,4658.3,4658.2,0.50887185]
[1759761949106,1.9663,4658.3,4658.2,0.00167185]
[1759761950406,1.9663,4658.3,4658.2,0.50887185]
[1759761951009,1.7493,4658.3,4658.2,0.50887185]
[1759761951208,1.9663,4658.3,4658.2,0.50887185]
[1759761951406,1.9663,4658.3,4658.2,0.00167185]
[1759761952112,1.9663,4658.3,4658.2,0.50887185]
[1759761952613,1.7829,4658.8,4658.7,2.16091]
[1759761952812,2.46524757,4658.8,4658.7,2.16091]
[1759761953205,2.46524757,4658.8,4658.7,1.38441]
[1759761954407,2.46524757,4658.8,4658.7,0.89341]
[1759761954709,2.46524757,4658.8,4658.5,0.38623]
[1759761955007,0.5329,4658.3,4658.2,0.00167185]
[1759761955210,1.9999,4658.3,4658.2,0.38793185]
[1759761955511,2.46561671,4658.3,4658.2,0.00167185]
[1759761956312,7.46561671,4658.3,4658.2,0.00167185]
[1759761956609,1.7829,4657.2,4657.1,5.36885]
[1759761956806,1.9999,4657.2,4657.1,5.36885]
[1759761957401,2.00173381,4657.2,4657.1,5.37127269]
[1759761957806,2.00173381,4657.2,4657.1,1.38697269]
[1759761958009,2.00173381,4657.2,4657.1,0.89597269]
[1759761958310,2.00173381,4657.2,4657.1,2.16347269]
[1759761959513,2.00173381,4657.2,4657.1,5.37127269]
[1759761959912,2.00173381,4657.2,4657.1,4.59477269]
[1759761960416,2.00173381,4657.2,4657.1,5.37127269]
[1759761961107,2.00173381,4657.2,4657.1,4.59477269]